fUSD/lending_fUSD_20250708
["ID","MTS","AMOUNT","RATE_DAILY","PERIOD"]
[370284017,1751935861275,-520.0,0.00030684,7]
[370284018,1751935861285,-460.0,0.00030684,7]
[370284019,1751935861294,-460.0,0.00030684,7]
[370284020,1751935861304,-479.58,0.00030684,7]
[370284021,1751935861316,-489.10093445,0.00030684,7]
[370284022,1751935861325,-460.0,0.00030684,7]
[370284023,1751935861334,-460.0,0.00030684,7]
[370284024,1751935861344,-460.0,0.00030684,7]
[370284025,1751935861353,-460.0,0.00030684,7]
[370284026,1751935861363,-649.39,0.00030684,7]
[370284027,1751935861373,-460.0,0.00030684,7]
[370284028,1751935861383,-460.0,0.00030684,7]
[370284029,1751935861393,-503.99,0.00030684,7]
[370284030,1751935861403,-460.0,0.00030684,7]
[370284031,1751935861412,-460.0,0.00030684,7]
[370284032,1751935861422,-460.0,0.00030684,7]
[370284033,1751935861432,-460.0,0.00030684,7]
[370284034,1751935861441,-460.0,0.00030684,7]
[370284035,1751935861450,-460.0,0.00030684,7]
[370284036,1751935861459,-581.86,0.00030684,7]
[370284037,1751935861468,-460.0,0.00030684,7]
[370284038,1751935861478,-603.48,0.00030684,7]
[370284039,1751935861487,-381.34,0.00030684,7]
[370284040,1751935861496,-569.3,0.00030684,7]
[370284041,1751935861505,-460.0,0.00030684,7]
[370284042,1751935861515,-596.28,0.00030684,7]
[370284043,1751935861524,-617.63,0.00030684,7]
[370284044,1751935861533,-460.0,0.00030684,7]
[370284045,1751935861543,-460.0,0.00030684,7]
[370284046,1751935861552,-495.68,0.00030684,7]
[370284047,1751935861562,-482.29,0.00030684,7]
[370284048,1751935861571,-460.0,0.00030684,7]
[370284049,1751935861580,-460.0,0.00030684,7]
[370284050,1751935861590,-460.0,0.00030684,7]
[370284051,1751935861599,-460.0,0.00030684,7]
[370284052,1751935861608,-460.0,0.00030684,7]
[370284053,1751935861617,-460.0,0.00030684,7]
[370284054,1751935861627,-496.87,0.00030684,7]
[370284055,1751935861636,-300.0,0.00030684,7]
[370284056,1751935861645,-460.0,0.00030684,7]
[370284057,1751935861655,-460.0,0.00030684,7]
[370284058,1751935861664,-460.0,0.00030684,7]
[370284059,1751935861674,-460.0,0.00030684,7]
[370284060,1751935861684,-460.0,0.00030684,7]
[370284061,1751935861693,-460.0,0.00030684,7]
[370284062,1751935861704,-460.0,0.00030684,7]
[370284063,1751935861713,-264.73,0.00030684,7]
[370284064,1751935861723,-460.0,0.00030684,7]
[370284065,1751935861732,-513.13,0.00030684,7]
[370284066,1751935861741,-470.83,0.00030684,7]
[370284067,1751935861750,-460.0,0.00030684,7]
[370284068,1751935861759,-460.0,0.00030684,7]
[370284069,1751935861769,-460.0,0.00030684,7]
[370284070,1751935861778,-460.0,0.00030684,7]
[370284071,1751935861787,-460.0,0.00030684,7]
[370284072,1751935861797,-460.0,0.00030684,7]
[370284073,1751935861806,-664.28,0.00030684,7]
[370284074,1751935861816,-460.0,0.00030684,7]
[370284075,1751935861825,-231.92,0.00030684,7]
[370284076,1751935861834,-460.0,0.00030684,7]
[370284077,1751935861844,-460.0,0.00030684,7]
[370284078,1751935861853,-256.1,0.00030684,7]
[370284079,1751935861862,-460.0,0.00030684,7]
[370284080,1751935861871,-460.0,0.00030684,7]
[370284081,1751935861881,-921.5,0.00030684,7]
[370284082,1751935861890,-460.0,0.00030684,7]
[370284083,1751935861899,-460.0,0.00030684,7]
[370284084,1751935861908,-346.33,0.00030684,7]
[370284085,1751935861919,-460.0,0.00030684,7]
[370284086,1751935861929,-462.4,0.00030684,7]
[370284087,1751935861939,-963.71,0.00030684,7]
[370284088,1751935861948,-348.0,0.00030684,7]
[370284089,1751935861958,-460.0,0.00030684,7]
[370284090,1751935861968,-460.0,0.00030684,7]
[370284091,1751935861978,-460.0,0.00030684,7]
[370284092,1751935861989,-460.0,0.00030684,7]
[370284093,1751935862000,-460.0,0.00030684,7]
[370284094,1751935862010,-520.0,0.00030684,7]
[370284095,1751935862019,-221.1,0.00030684,7]
[370284096,1751935862029,-460.0,0.00030684,7]
[370284097,1751935862038,-460.0,0.00030684,7]
[370284098,1751935862049,-460.0,0.00030684,7]
[370284099,1751935862058,-186.71722353,0.00030684,7]
[370284100,1751935862076,-595.53,0.00030684,7]
[370284101,1751935862085,-460.0,0.00030684,7]
[370284102,1751935862094,-460.0,0.00030684,7]
[370284103,1751935862103,-460.0,0.00030684,7]
[370284104,1751935862114,-460.0,0.00030684,7]
[370284105,1751935862123,-460.0,0.00030684,7]
[370284106,1751935862133,-460.0,0.00030684,7]
[370284107,1751935862142,-460.0,0.00030684,7]
[370284108,1751935862154,-549.7,0.00030684,7]
[370284109,1751935862165,-460.0,0.00030684,7]
[370284110,1751935862175,-460.0,0.00030684,7]
[370284111,1751935862185,-462.67,0.00030684,7]
[370284112,1751935862194,-460.0,0.00030684,7]
[370284113,1751935862204,-185.75,0.00030684,7]
[370284114,1751935862215,-563.6,0.00030684,7]
[370284115,1751935862224,-478.58,0.00030684,7]
[370284116,1751935862233,-460.0,0.00030684,7]
[370284117,1751935862242,-460.0,0.00030684,7]
[370284118,1751935862252,-460.0,0.00030684,7]
[370284119,1751935862261,-460.0,0.00030684,7]
[370284120,1751935862271,-460.0,0.00030684,7]
[370284121,1751935862280,-198.17380353,0.00030684,7]
[370284122,1751935862289,-460.0,0.00030684,7]
[370284123,1751935862299,-460.0,0.00030684,7]
[370284124,1751935862308,-657.74,0.00030684,7]
[370284125,1751935862323,-561.02,0.00030684,7]
[370284126,1751935862332,-301.0,0.00030684,7]
[370284127,1751935862341,-324.22,0.00030684,7]
[370284128,1751935862350,-460.0,0.00030684,7]
[370284129,1751935862360,-460.0,0.00030684,7]
[370284130,1751935862369,-460.0,0.00030684,7]
[370284131,1751935862379,-460.0,0.00030684,7]
[370284132,1751935862388,-460.0,0.00030684,7]
[370284133,1751935862397,-460.0,0.00030684,7]
[370284134,1751935862407,-460.0,0.00030684,7]
[370284135,1751935862416,-460.0,0.00030684,7]
[370284136,1751935862425,-460.0,0.00030684,7]
[370284137,1751935862434,-460.0,0.00030684,7]
[370284138,1751935862443,-460.0,0.00030684,7]
[370284139,1751935862452,-460.0,0.00030684,7]
[370284140,1751935862462,-559.48,0.00030684,7]
[370284141,1751935862471,-460.0,0.00030684,7]
[370284142,1751935862480,-460.0,0.00030684,7]
[370284143,1751935862490,-460.0,0.00030684,7]
[370284144,1751935862499,-1451.85,0.00030684,7]
[370284145,1751935862508,-1082.13,0.00030684,7]
[370284146,1751935862517,-460.0,0.00030684,7]
[370284147,1751935862527,-623.86,0.00030684,7]
[370284148,1751935862536,-460.0,0.00030684,7]
[370284149,1751935862545,-460.0,0.00030684,7]
[370284150,1751935862556,-460.0,0.00030684,7]
[370284151,1751935862567,-1884.01,0.00030684,7]
[370284152,1751935862576,-460.0,0.00030684,7]
[370284153,1751935862586,-462.2,0.00030684,7]
[370284154,1751935862596,-460.0,0.00030684,7]
[370284155,1751935862605,-567.72,0.00030684,7]
[370284156,1751935862614,-460.0,0.00030684,7]
[370284157,1751935862623,-688.33,0.00030684,7]
[370284158,1751935862632,-460.0,0.00030684,7]
[370284159,1751935862641,-460.0,0.00030684,7]
[370284160,1751935862650,-460.0,0.00030684,7]
[370284161,1751935862660,-460.0,0.00030684,7]
[370284162,1751935862669,-460.0,0.00030684,7]
[370284163,1751935862678,-460.0,0.00030684,7]
[370284164,1751935862688,-733.49,0.00030684,7]
[370284165,1751935862697,-148.42618351,0.00030684,7]
[370284166,1751935862713,-311.57381649,0.00030684,7]
[370284167,1751935862722,-460.0,0.00030684,7]
[370284168,1751935862731,-1259.24,0.00030684,7]
[370284169,1751935862742,-569.68,0.00030684,7]
[370284170,1751935862751,-460.0,0.00030684,7]
[370284171,1751935862762,-682.24,0.00030684,7]
[370284172,1751935862771,-460.0,0.00030684,7]
[370284173,1751935862780,-460.0,0.00030684,7]
[370284174,1751935862790,-460.0,0.00030684,7]
[370284175,1751935862799,-460.0,0.00030684,7]
[370284176,1751935862808,-460.0,0.00030684,7]
[370284177,1751935862820,-460.0,0.00030684,7]
[370284178,1751935862830,-460.0,0.00030684,7]
[370284179,1751935862838,-460.0,0.00030684,7]
[370284180,1751935862848,-553.06,0.00030684,7]
[370284181,1751935862857,-946.67,0.00030684,7]
[370284182,1751935862866,-541.99,0.00030684,7]
[370284183,1751935862875,-460.0,0.00030684,7]
[370284184,1751935862884,-460.0,0.00030684,7]
[370284185,1751935862893,-460.0,0.00030684,7]
[370284186,1751935862902,-460.0,0.00030684,7]
[370284187,1751935862911,-552.89,0.00030684,7]
[370284188,1751935862920,-300.0,0.00030684,2]
[370284189,1751935862931,-460.0,0.00030684,7]
[370284190,1751935862940,-216.23,0.00030684,7]
[370284191,1751935862951,-460.0,0.00030684,7]
[370284192,1751935862960,-460.0,0.00030684,7]
[370284193,1751935862969,-460.0,0.00030684,7]
[370284194,1751935862979,-460.0,0.00030684,7]
[370284195,1751935862989,-584.46,0.00030684,7]
[370284196,1751935862998,-460.0,0.00030684,7]
[370284197,1751935863007,-460.0,0.00030684,7]
[370284198,1751935863016,-460.0,0.00030684,7]
[370284199,1751935863026,-460.0,0.00030684,7]
[370284200,1751935863036,-460.0,0.00030684,7]
[370284201,1751935863045,-460.0,0.00030684,7]
[370284202,1751935863055,-460.0,0.00030684,7]
[370284203,1751935863067,-460.0,0.00030684,7]
[370284204,1751935863080,-460.0,0.00030684,7]
[370284205,1751935863090,-460.0,0.00030684,7]
[370284206,1751935863100,-460.0,0.00030684,7]
[370284207,1751935863110,-460.0,0.00030684,7]
[370284208,1751935863121,-460.0,0.00030684,7]
[370284209,1751935863130,-460.0,0.00030684,7]
[370284210,1751935863140,-460.0,0.00030684,7]
[370284211,1751935863151,-99.16071638,0.00030684,7]
[370284212,1751935863167,-490.0,0.00030136,7]
[370284213,1751935863177,-360.83928362,0.00030684,7]
[370284214,1751935863187,-460.0,0.00030684,7]
[370284215,1751935863196,-460.0,0.00030684,7]
[370284216,1751935863205,-519.78,0.00030684,7]
[370284217,1751935863214,-303.55,0.00030684,7]
[370284218,1751935863224,-460.0,0.00030684,7]
[370284219,1751935863234,-460.0,0.00030684,7]
[370284220,1751935863243,-460.0,0.00030684,7]
[370284221,1751935863252,-460.0,0.00030684,7]
[370284222,1751935863262,-460.0,0.00030684,7]
[370284223,1751935863271,-460.0,0.00030684,7]
[370284224,1751935863281,-460.0,0.00030684,7]
[370284225,1751935863290,-805.73,0.00030684,7]
[370284226,1751935863299,-460.0,0.00030684,7]
[370284227,1751935863309,-460.0,0.00030684,7]
[370284228,1751935863320,-793.1,0.00030684,7]
[370284229,1751935863330,-636.61,0.00030684,7]
[370284230,1751935863340,-9.1766491,0.00030684,7]
[370284231,1751935863357,-460.0,0.00030136,7]
[370284232,1751935863367,-450.8233509,0.00030684,7]
[370284233,1751935863376,-460.0,0.00030684,7]
[370284234,1751935863386,-775.1,0.00030684,7]
[370284235,1751935863396,-516.8,0.00030684,7]
[370284236,1751935863406,-519.39,0.00030684,7]
[370284237,1751935863416,-460.0,0.00030684,7]
[370284238,1751935863426,-460.0,0.00030684,7]
[370284239,1751935863436,-460.0,0.00030684,7]
[370284240,1751935863445,-460.0,0.00030684,7]
[370284241,1751935863455,-460.0,0.00030684,7]
[370284242,1751935863465,-490.0,0.00030684,7]
[370284243,1751935863474,-460.0,0.00030684,7]
[370284244,1751935863484,-460.0,0.00030684,7]
[370284245,1751935863494,-460.0,0.00030684,7]
[370284246,1751935863503,-460.0,0.00030684,7]
[370284247,1751935863513,-460.0,0.00030684,7]
[370284248,1751935863523,-394.94434571,0.00030684,7]
[370284249,1751935863533,-512.77,0.00030684,7]
[370284250,1751935863543,-460.0,0.00030684,7]
[370284251,1751935863552,-460.0,0.00030684,7]
[370284252,1751935863562,-460.0,0.00030684,7]
[370284253,1751935863572,-490.0,0.00030684,7]
[370284254,1751935863582,-460.0,0.00030684,7]
[370284255,1751935863591,-704.49,0.00030684,7]
[370284256,1751935863601,-745.39,0.00030684,7]
[370284257,1751935863610,-460.0,0.00030684,7]
[370284258,1751935863619,-460.0,0.00030684,7]
[370284259,1751935863628,-1006.0,0.00030684,7]
[370284260,1751935863638,-460.0,0.00030684,7]
[370284261,1751935863647,-460.0,0.00030684,7]
[370284262,1751935863656,-460.0,0.00030684,7]
[370284263,1751935863666,-460.0,0.00030684,7]
[370284264,1751935863675,-606.4,0.00030684,7]
[370284265,1751935863685,-570.34,0.00030684,7]
[370284266,1751935863694,-496.47,0.00030684,7]
[370284267,1751935863704,-460.0,0.00030684,7]
[370284268,1751935863713,-473.91,0.00030684,7]
[370284269,1751935863723,-281.1,0.00030684,7]
[370284270,1751935863732,-205.57,0.00030684,7]
[370284271,1751935863742,-1388.41,0.00030684,7]
[370284272,1751935863752,-1565.83,0.00030684,7]
[370284273,1751935863761,-460.0,0.00030684,7]
[370284274,1751935863770,-150.85,0.00030684,7]
[370284275,1751935863779,-460.0,0.00030684,7]
[370284276,1751935863789,-460.0,0.00030684,7]
[370284277,1751935863798,-460.0,0.00030684,7]
[370284278,1751935863808,-460.0,0.00030684,7]
[370284279,1751935863818,-272.12,0.00030684,7]
[370284280,1751935863827,-460.0,0.00030684,7]
[370284281,1751935863836,-460.0,0.00030684,7]
[370284282,1751935863845,-572.42,0.00030684,7]
[370284283,1751935863855,-517.84,0.00030684,7]
[370284284,1751935863865,-460.0,0.00030684,7]
[370284285,1751935863874,-460.0,0.00030684,7]
[370284286,1751935863884,-460.0,0.00030684,7]
[370284287,1751935863894,-6055.95,0.00030684,7]
[370284288,1751935863903,-460.0,0.00030684,7]
[370284289,1751935863913,-534.0384003,0.00030684,2]
[370284290,1751935863922,-500.0,0.00030721,5]
[370284291,1751935863931,-3571.5315267,0.00030766,2]
[370284292,1751935863940,-500.0,0.000308,11]
[370284293,1751935863950,-179.717,0.00030844,27]
[370284294,1751935863960,-1627.08,0.00030844,27]
[370284295,1751935863969,-167.2,0.00030855,2]
[370284296,1751935863978,-700.0,0.000309,11]
[370284297,1751935863987,-500.0,0.00030936,7]
[370284298,1751935863997,-500.0,0.00030936,7]
[370284299,1751935864006,-500.0,0.00030936,7]
[370284300,1751935864014,-500.0,0.00030936,7]
[370284301,1751935864023,-500.0,0.00030936,7]
[370284302,1751935864032,-500.0,0.00030936,7]
[370284303,1751935864041,-500.0,0.00030936,7]
[370284304,1751935864050,-984.71,0.00030936,7]
[370284305,1751935864059,-984.71,0.00030936,7]
[370284306,1751935864072,-984.71,0.00030936,7]
[370284307,1751935864082,-984.71,0.00030936,7]
[370284308,1751935864092,-984.71,0.00030936,7]
[370284309,1751935864103,-984.71,0.00030936,7]
[370284310,1751935864113,-984.71,0.00030936,7]
[370284311,1751935864123,-2282.19,0.00030936,7]
[370284312,1751935864133,-2282.19,0.00030936,7]
[370284313,1751935864142,-2282.19,0.00030936,7]
[370284314,1751935864153,-2282.19,0.00030936,7]
[370284315,1751935864163,-2282.19,0.00030936,7]
[370284316,1751935864173,-2282.19,0.00030936,7]
[370284317,1751935864182,-2282.19,0.00030936,7]
[370284318,1751935864371,-500.0,0.00030936,7]
[370284319,1751935864381,-500.0,0.00030936,7]
[370284320,1751935864391,-500.0,0.00030936,7]
[370284321,1751935864401,-505.6317108,0.00030936,7]
[370284322,1751935864411,-500.0,0.00030936,7]
[370284323,1751935864421,-500.0,0.00030936,7]
[370284324,1751935864430,-500.0,0.00030936,7]
[370284325,1751935864440,-500.0,0.00030936,7]
[370284326,1751935864450,-500.0,0.00030936,7]
[370284327,1751935864459,-500.0,0.00030936,7]
[370284328,1751935864469,-500.0,0.00030936,7]
[370284329,1751935864478,-460.0,0.00030954,7]
[370284330,1751935864487,-460.0,0.00030954,7]
[370284331,1751935864497,-520.0,0.00030954,7]
[370284332,1751935864506,-460.0,0.00030954,7]
[370284333,1751935864516,-460.0,0.00030954,7]
[370284334,1751935864526,-460.0,0.00030954,7]
[370284335,1751935864535,-520.0,0.00030954,7]
[370284336,1751935864546,-460.0,0.00030954,7]
[370284337,1751935864555,-500.0,0.00030954,7]
[370284338,1751935864565,-500.0,0.00030954,7]
[370284339,1751935864575,-500.0,0.00030955,7]
[370284340,1751935864584,-984.71,0.00030955,7]
[370284341,1751935864594,-516.82633782,0.00030955,7]
[370284342,1751935864603,-2282.19,0.00030955,7]
[370284343,1751935864613,-500.0,0.00030955,7]
[370284344,1751935864623,-884.96,0.00030955,7]
[370284345,1751935864633,-2959.47,0.00030955,7]
[370284346,1751935864642,-378.73463859,0.00030956,7]
[370284347,1751935864652,-460.0,0.00030956,7]
[370284348,1751935864661,-460.0,0.00030956,7]
[370284349,1751935864672,-460.0,0.00030956,7]
[370284350,1751935864681,-460.0,0.00030956,7]
[370284351,1751935864691,-460.0,0.00030956,7]
[370284352,1751935864700,-460.0,0.00030956,7]
[370284353,1751935864709,-460.0,0.00030956,7]
[370284354,1751935864719,-460.0,0.00030956,7]
[370284355,1751935864728,-460.0,0.00030956,7]
[370284356,1751935864738,-460.0,0.00030956,7]
[370284357,1751935864747,-460.0,0.00030956,7]
[370284358,1751935864757,-460.0,0.00030956,7]
[370284359,1751935864767,-460.0,0.00030956,7]
[370284360,1751935864776,-460.0,0.00030956,7]
[370284361,1751935864786,-499.47,0.00030956,7]
[370284362,1751935864795,-460.0,0.00030956,7]
[370284363,1751935864804,-460.0,0.00030956,7]
[370284364,1751935864814,-460.0,0.00030956,7]
[370284365,1751935864824,-460.0,0.00030956,7]
[370284366,1751935864833,-460.0,0.00030956,7]
[370284367,1751935864843,-460.0,0.00030956,7]
[370284368,1751935864852,-460.0,0.00030956,7]
[370284369,1751935864861,-460.0,0.00030956,7]
[370284370,1751935864871,-323.64,0.00030956,7]
[370284371,1751935864880,-520.0,0.00030957,7]
[370284372,1751935864889,-550.0,0.00030957,7]
[370284373,1751935864899,-520.0,0.00030957,7]
[370284374,1751935864908,-460.0,0.00030957,7]
[370284375,1751935864918,-776.02,0.00030957,7]
[370284376,1751935864929,-494.19,0.00030957,7]
[370284377,1751935864938,-661.06,0.00030957,7]
[370284378,1751935864948,-1150.92,0.00030957,7]
[370284379,1751935864957,-460.0,0.00030957,7]
[370284380,1751935864966,-2680.78,0.00030957,7]
[370284381,1751935864976,-460.0,0.00030957,7]
[370284382,1751935864985,-757.61,0.00030957,7]
[370284383,1751935864994,-460.0,0.00030957,7]
[370284384,1751935865003,-460.0,0.00030957,7]
[370284385,1751935865012,-460.0,0.00030957,7]
[370284386,1751935865022,-1543.49,0.00030957,7]
[370284387,1751935865031,-460.0,0.00030957,7]
[370284388,1751935865041,-1264.22,0.00030957,7]
[370284389,1751935865050,-649.71,0.00030957,7]
[370284390,1751935865060,-460.0,0.00030957,7]
[370284391,1751935865071,-460.0,0.00030957,7]
[370284392,1751935865084,-764.11,0.00030957,7]
[370284393,1751935865093,-1310.5,0.00030957,7]
[370284394,1751935865102,-471.08,0.00030957,7]
[370284395,1751935865232,-1518.81,0.00030957,7]
[370284396,1751935865242,-460.0,0.00030957,7]
[370284397,1751935865251,-460.0,0.00030957,7]
[370284398,1751935865260,-460.0,0.00030957,7]
[370284399,1751935865270,-460.0,0.00030957,7]
[370284400,1751935865279,-460.0,0.00030957,7]
[370284401,1751935865289,-865.51,0.00030957,7]
[370284402,1751935865298,-460.0,0.00030957,7]
[370284403,1751935865308,-460.0,0.00030957,7]
[370284404,1751935865318,-504.68,0.00030957,7]
[370284405,1751935865327,-460.0,0.00030957,7]
[370284406,1751935865336,-835.61,0.00030957,7]
[370284407,1751935865345,-460.0,0.00030957,7]
[370284408,1751935865355,-1390.42,0.00030957,7]
[370284409,1751935865364,-460.0,0.00030957,7]
[370284410,1751935865375,-460.0,0.00030958,7]
[370284411,1751935865384,-460.0,0.00030958,7]
[370284412,1751935865393,-460.0,0.00030958,7]
[370284413,1751935865403,-437.19,0.00030958,7]
[370284414,1751935865412,-460.0,0.00030958,7]
[370284415,1751935865422,-224.29,0.00030958,7]
[370284416,1751935865433,-75.57432383,0.00030958,7]
[370284418,1751935973891,490.0,0.00030136,120]
[370284421,1751936205027,157.18,0.00013699,2]
[370284430,1751936927471,-250.0,0.00015,2]
[370284431,1751936927499,-161.98757335,0.00015,2]
[370284432,1751936927525,-166.7,0.00023287,2]
[370284433,1751936927555,-443.975,0.00027397,2]
[370284434,1751936927581,-266.385,0.00027497,2]
[370284435,1751936927608,-177.59,0.00027597,2]
[370284436,1751936927634,-485.485,0.00028718,2]
[370284437,1751936927660,-47.87742665,0.00028825,2]
[370284440,1751937031982,-785.92257335,0.00028825,2]
[370284441,1751937031992,-153.23,0.00028863,2]
[370284442,1751937032002,-1200.0,0.00028932,2]
[370284443,1751937032011,-2307.12742655,0.00028933,2]
[370284444,1751937032022,-5880.0,0.00028933,2]
[370284445,1751937032033,-3550.000005,0.00028933,2]
[370284446,1751937032045,-1300.0,0.00028933,2]
[370284447,1751937032056,-10862.87256845,0.00028933,2]
[370284448,1751937032066,-163.46,0.00028957,2]
[370284449,1751937032075,-166.91,0.00028989,2]
[370284450,1751937032084,-151.0,0.00028992,2]
[370284451,1751937032094,-151.0,0.00028992,2]
[370284452,1751937032103,-151.0,0.00028992,2]
[370284453,1751937032113,-151.0,0.00028992,2]
[370284454,1751937032123,-151.0,0.00028992,2]
[370284455,1751937032133,-151.0,0.00028992,2]
[370284456,1751937032143,-151.0,0.00028992,2]
[370284457,1751937032152,-151.0,0.00028992,2]
[370284458,1751937032161,-151.0,0.00028992,2]
[370284459,1751937032170,-151.0,0.00028992,2]
[370284460,1751937032179,-151.0,0.00028992,2]
[370284461,1751937032189,-151.0,0.00028992,2]
[370284462,1751937032198,-151.0,0.00028992,2]
[370284463,1751937032207,-151.0,0.00028992,2]
[370284464,1751937032216,-151.0,0.00028992,2]
[370284465,1751937032225,-666.0,0.00028996,2]
[370284466,1751937032236,-200.0,0.00029009,7]
[370284467,1751937032246,-16869.99,0.0002901,2]
[370284468,1751937032255,-171.55,0.0002902,2]
[370284469,1751937032265,-250.0,0.00029117,2]
[370284470,1751937032274,-1000.0,0.00029135,2]
[370284471,1751937032284,-166.73,0.00029724,2]
[370284472,1751937032294,-568.21,0.00029855,2]
[370284473,1751937032303,-568.21,0.00029871,2]
[370284474,1751937032312,-568.21,0.00029887,2]
[370284475,1751937032322,-18484.5288921,0.000299,7]
[370284476,1751937032334,-2388.14779165,0.000299,7]
[370284477,1751937032359,-11833.31168805,0.000299,7]
[370284479,1751937032369,-210.31172994,0.000299,7]
[370284481,1751937032378,-1221.66305307,0.000299,21]
[370284483,1751937032388,-568.21,0.00029902,2]
[370284485,1751937032397,-568.21,0.00029918,2]
[370284487,1751937032406,-568.21,0.00029934,2]
[370284489,1751937032421,-1997.82977721,0.00029936,2]
[370284492,1751937032436,-502.24229148,0.00029936,2]
[370284494,1751937032445,-152.74574405,0.00029936,2]
[370284496,1751937032455,-568.21,0.0002995,2]
[370284498,1751937032465,-568.21,0.00029965,2]
[370284500,1751937032475,-568.21,0.00029981,2]
[370284502,1751937032488,-568.21,0.00029997,2]
[370284504,1751937032497,-916.66400141,0.0003,7]
[370284506,1751937032509,-83.33599859,0.0003,7]
[370284508,1751937032518,-364.17069874,0.00030012,2]
[370284510,1751937032531,-204.03930126,0.00030012,2]
[370284512,1751937032540,-90.45517818,0.00030028,2]
[370284514,1751937032552,-477.75482182,0.00030028,2]
[370284516,1751937032561,-603.58493608,0.00030035,2]
[370284518,1751937032571,-331.98827868,0.00030035,2]
[370284520,1751937032581,-622.53037381,0.00030035,2]
[370284522,1751937032590,-161.34105111,0.00030035,2]
[370284524,1751937032600,-5000.0,0.00030036,2]
[370284526,1751937032609,-2626.5205336,0.00030036,3]
[370284530,1751937032632,-269.06904761,0.00030036,3]
[370284532,1751937032643,-23085.65914062,0.00030036,3]
[370284789,1751937037982,-9658.64729905,0.00030036,3]
[370284793,1751937038351,-53248.10397912,0.00030036,3]
[370284794,1751937038363,-168.98865105,0.00030036,15]
[370284795,1751937038373,-568.21,0.00030044,2]
[370284796,1751937038383,-568.21,0.0003006,2]
[370284797,1751937038393,-568.21,0.00030075,2]
[370284798,1751937038403,-568.21,0.00030091,2]
[370284799,1751937038417,-568.21,0.00030107,2]
[370284800,1751937038426,-182.44,0.00030116,2]
[370284801,1751937038441,-209.86,0.00030116,2]
[370284803,1751937038450,-568.21,0.00030123,2]
[370284805,1751937038461,-332.26105478,0.00030125,2]
[370284807,1751937038471,-151691.834534,0.00030126,2]
[370284809,1751937038481,-490.0,0.00030136,7]
[370284811,1751937038493,-493.11983667,0.00030136,7]
[370284813,1751937038502,-460.0,0.00030136,7]
[370284814,1751937038512,-490.0,0.00030136,7]
[370284815,1751937038523,-460.0,0.00030136,7]
[370284816,1751937038533,-490.0,0.00030136,7]
[370284817,1751937038542,-540.0,0.00030136,7]
[370284818,1751937038552,-490.0,0.00030136,7]
[370284819,1751937038561,-445.50962594,0.00030136,7]
[370284821,1751937038571,-486.96350292,0.00030136,7]
[370284823,1751937038581,-490.0,0.00030136,7]
[370284825,1751937038590,-490.0,0.00030136,7]
[370284827,1751937038600,-490.0,0.00030136,7]